bitfinex-derivatives/quotes_BTCF0:USTF0_20250728
["timestamp","ask_amount","ask_price","bid_price","bid_amount"]
[1753687327756,0.47420785,119040.0,119030.0,1.16719]
[1753687328264,0.47420785,119040.0,119030.0,1.50289203]
[1753687328664,0.47424751,119040.0,119030.0,1.16719]
[1753687329066,0.47424751,119040.0,119030.0,1.50289203]
[1753687329265,0.47424751,119040.0,119030.0,1.50269203]
[1753687330465,0.47428751,119040.0,119030.0,1.50269203]
[1753687331268,0.34551751,119040.0,119030.0,1.50269203]
[1753687331970,0.34551751,119040.0,119030.0,1.50249203]
[1753687334861,0.40524295,119040.0,119030.0,2.26925006]
[1753687335065,0.25551281,119040.0,119030.0,2.26925006]
[1753687335265,0.11451581,119040.0,119030.0,2.26925006]
[1753687335579,0.1680197,119050.0,119040.0,0.37279]
[1753687335766,0.1209997,119050.0,119040.0,1.47525006]
[1753687336073,0.18072514,119050.0,119040.0,1.47525006]
[1753687336260,0.1679797,119050.0,119040.0,1.47525006]
[1753687340171,0.1679797,119050.0,119040.0,1.47725006]
[1753687341175,0.1680197,119050.0,119040.0,1.47725006]
[1753687342063,0.1680197,119050.0,119040.0,1.72725006]
[1753687343172,0.1680197,119050.0,119040.0,1.74398723]
[1753687343367,0.27566124,119060.0,119040.0,1.74398723]
[1753687343569,0.44362684,119060.0,119050.0,1.45587803]
[1753687345277,0.49316684,119060.0,119050.0,1.45587803]
[1753687346875,0.49316684,119060.0,119050.0,1.45787803]
[1753687347277,0.51100153,119060.0,119050.0,1.45787803]
[1753687349478,0.46146153,119060.0,119050.0,1.45787803]
[1753687349972,0.51100153,119060.0,119050.0,1.45787803]
[1753687352582,0.51100153,119060.0,119050.0,1.72737803]
[1753687356083,0.51100153,119060.0,119050.0,1.72673803]
[1753687356583,0.49316684,119060.0,119050.0,1.72673803]
[1753687356781,0.46899686,119060.0,119050.0,1.72673803]
[1753687357279,0.41945686,119060.0,119050.0,1.03825803]
[1753687357582,0.41945686,119060.0,119050.0,2.88849803]
[1753687358487,0.06985881,119060.0,119050.0,3.22420006]
[1753687358681,0.15384761,119060.0,119050.0,3.22420006]
[1753687358877,0.15384761,119060.0,119050.0,2.88849803]
[1753687359481,0.0915283,119070.0,119050.0,2.88849803]
[1753687359673,0.2594798,119070.0,119060.0,0.76675803]
[1753687361388,0.06790678,119070.0,119060.0,1.37196006]
[1753687361683,0.25236117,119090.0,119080.0,0.3485]
[1753687361884,0.25236117,119090.0,119080.0,1.97760406]
[1753687362977,0.44138117,119090.0,119080.0,1.97760406]
[1753687363178,0.44138117,119090.0,119080.0,1.97748406]
[1753687363675,0.73564117,119090.0,119080.0,1.64178203]
[1753687363878,0.73564117,119090.0,119080.0,1.97748406]
[1753687364091,0.73564117,119090.0,119080.0,1.64178203]
[1753687365176,0.80154145,119090.0,119080.0,1.64178203]
[1753687365377,0.3113379,119100.0,119090.0,0.48447]
[1753687365582,0.4792471,119100.0,119090.0,1.50817203]
[1753687366487,0.4792471,119100.0,119090.0,1.17247]
[1753687366688,0.4792471,119100.0,119090.0,1.50817203]
[1753687366876,0.4792471,119100.0,119090.0,1.17247]
[1753687367078,0.4792471,119100.0,119090.0,1.50817203]
[1753687367589,0.7745071,119100.0,119090.0,1.17247]
[1753687367785,0.7745071,119100.0,119090.0,1.50817203]
[1753687368490,0.7765071,119100.0,119090.0,0.82017203]
[1753687368690,1.11220913,119100.0,119090.0,0.04706]
[1753687368890,1.15418943,119100.0,119090.0,0.68784]
[1753687369093,4e-05,119110.0,119090.0,1.0555]
[1753687369283,0.60363713,119110.0,119100.0,0.04706]
[1753687369688,0.77155713,119110.0,119100.0,0.04706]
[1753687369991,0.77155713,119110.0,119100.0,0.73486]
[1753687370295,0.77155713,119110.0,119100.0,0.04706]
[1753687370494,0.78932844,119110.0,119100.0,0.73486]
[1753687370792,0.28570641,119110.0,119100.0,1.07056203]
[1753687371795,0.28570641,119110.0,119100.0,1.07052203]
[1753687371994,0.92331263,119120.0,119100.0,1.07052203]
[1753687372590,1.13255851,119120.0,119110.0,0.04706]
[1753687372990,0.37713708,119120.0,119110.0,0.04706]
[1753687373191,0.79504108,119120.0,119110.0,0.04706]
[1753687373390,0.37713708,119120.0,119110.0,0.82017203]
[1753687373593,0.54518978,119120.0,119110.0,0.82017203]
[1753687373798,0.44518978,119120.0,119110.0,0.82017203]
[1753687373996,0.44718978,119120.0,119110.0,0.82017203]
[1753687374497,0.44818978,119120.0,119110.0,0.82017203]
[1753687374697,0.22778343,119130.0,119120.0,0.04706]
[1753687374897,0.32778343,119130.0,119120.0,0.7347]
[1753687375195,0.51109497,119130.0,119120.0,0.7347]
[1753687376089,0.55312629,119130.0,119120.0,0.7387]
[1753687376397,0.55312629,119130.0,119120.0,0.7407]
[1753687376998,0.47802622,119130.0,119120.0,0.7407]
[1753687377498,0.47802622,119130.0,119120.0,1.0646]
[1753687378294,0.54504775,119130.0,119120.0,1.0646]
[1753687380699,0.37715975,119130.0,119120.0,1.0646]
[1753687382795,0.71286178,119130.0,119120.0,1.0646]
[1753687383401,0.74675357,119140.0,119120.0,1.01754]
[1753687383601,1.0824556,119140.0,119130.0,0.04706]
[1753687383897,1.2503084,119140.0,119130.0,0.04706]
[1753687384202,1.57719438,119140.0,119130.0,0.04706]
[1753687384711,0.56986165,119140.0,119130.0,0.82017203]
[1753687384898,0.39472158,119140.0,119130.0,1.50733203]
[1753687385090,0.45458678,119140.0,119130.0,0.82017203]
[1753687385401,0.55558678,119140.0,119130.0,1.51929203]
[1753687385601,0.62173836,119140.0,119130.0,1.18359]
[1753687385802,0.56187316,119140.0,119130.0,1.51929203]
[1753687386193,0.56187316,119140.0,119130.0,0.83217203]
[1753687386397,0.56187316,119140.0,119130.0,1.51925203]
[1753687386603,0.56187316,119140.0,119130.0,1.52625203]
[1753687387197,0.56191316,119140.0,119130.0,1.52625203]
[1753687390003,0.62177836,119140.0,119130.0,1.52625203]
[1753687390395,0.62177836,119140.0,119130.0,0.83917203]
[1753687390597,0.62177836,119140.0,119130.0,1.52605203]
[1753687390905,0.2277439,119150.0,119140.0,0.04706]
[1753687391099,0.3956079,119150.0,119140.0,0.38276203]
[1753687391306,0.3956079,119150.0,119140.0,0.82017203]
[1753687391506,0.2277439,119150.0,119140.0,0.82017203]
[1753687392006,0.2287439,119150.0,119140.0,0.83117203]
[1753687392208,0.27148225,119150.0,119140.0,0.83117203]
[1753687393210,0.27148225,119150.0,119140.0,0.83717203]
[1753687395712,0.3390148,119150.0,119140.0,0.83717203]
[1753687396312,1.1065594,119160.0,119150.0,0.1458]
[1753687396513,1.1065594,119160.0,119150.0,0.80635203]
[1753687396811,1.2744074,119160.0,119150.0,0.80635203]
[1753687397515,1.2744074,119160.0,119150.0,0.81135203]
[1753687397814,0.3366594,119160.0,119150.0,0.82135203]
[1753687398010,0.3366594,119160.0,119150.0,1.84361406]
[1753687398214,0.3366594,119160.0,119150.0,1.50791203]
[1753687399214,0.37831753,119160.0,119150.0,1.50791203]
[1753687401114,0.40309199,119160.0,119150.0,1.84361406]
[1753687401509,0.0839079,119170.0,119150.0,1.84724067]
[1753687401715,0.2517184,119170.0,119160.0,1.14205406]
[1753687402518,0.31912417,119170.0,119160.0,1.14205406]
[1753687402915,0.33627869,119170.0,119160.0,1.49267203]
[1753687403115,0.33627869,119170.0,119160.0,1.82837406]
[1753687403414,0.37928524,119170.0,119160.0,1.49267203]
[1753687403719,0.83348524,119170.0,119160.0,1.49663203]
[1753687404411,0.83348524,119170.0,119160.0,1.83233406]
[1753687404412,0.38028524,119170.0,119160.0,1.83233406]
[1753687405313,0.0419902,119180.0,119160.0,1.83233406]
[1753687405314,0.1258941,119180.0,119160.0,1.83233406]
[1753687405514,0.3820127,119180.0,119170.0,0.72983203]
[1753687405915,0.6357045,119180.0,119170.0,0.72264203]
[1753687406114,1.20139653,119180.0,119170.0,0.52937346]
[1753687406321,1.20139653,119180.0,119160.0,0.51783203]
[1753687406322,0.6309306,119170.0,119160.0,0.51783203]
[1753687406512,0.234778,119180.0,119160.0,1.48254203]
[1753687406709,0.57048003,119180.0,119170.0,0.04994]
[1753687406914,0.79823637,119180.0,119160.0,0.06294]
[1753687407114,1.24865434,119180.0,119160.0,0.06294]
[1753687407315,0.1678106,119170.0,119160.0,0.39864203]
[1753687407620,0.1678106,119170.0,119160.0,0.39964203]
[1753687407821,0.3356426,119170.0,119160.0,0.39964203]
[1753687408417,0.3356426,119170.0,119160.0,0.38964203]
[1753687408618,0.3356426,119170.0,119160.0,0.39864203]
[1753687408923,0.3356826,119170.0,119160.0,0.39864203]
[1753687409121,0.3366826,119170.0,119160.0,0.39964203]
[1753687409817,0.37870814,119170.0,119160.0,0.39964203]
[1753687410418,0.37870814,119170.0,119160.0,0.40064203]
[1753687411123,0.37870814,119170.0,119160.0,0.56529203]
[1753687411422,0.43844723,119170.0,119160.0,0.56529203]
[1753687411918,0.43844723,119170.0,119160.0,0.63329203]
[1753687412225,0.37870814,119170.0,119160.0,0.82135203]
[1753687413322,1.1727944,119180.0,119170.0,0.04994]
[1753687413522,1.2727944,119180.0,119170.0,0.38564203]
[1753687413723,1.35671165,119180.0,119170.0,0.38564203]
[1753687414726,1.35671165,119180.0,119170.0,0.80635203]
[1753687415228,1.25671165,119180.0,119170.0,0.80635203]
[1753687415419,1.29780068,119180.0,119170.0,0.80635203]
[1753687415619,1.29780068,119180.0,119170.0,0.80935203]
[1753687416522,1.29880068,119180.0,119170.0,0.81835203]
[1753687416718,1.35853977,119180.0,119170.0,0.81835203]
[1753687417227,1.37564088,119180.0,119170.0,0.81835203]
[1753687418022,1.31590179,119180.0,119170.0,0.81835203]
[1753687418627,1.37575179,119180.0,119170.0,0.81835203]
[1753687419717,1.31590354,119180.0,119170.0,0.81835203]
[1753687419924,1.35448354,119180.0,119170.0,0.70568083]
[1753687420120,1.35448354,119180.0,119170.0,0.75675896]
[1753687420320,1.36770354,119180.0,119170.0,0.62065246]
[1753687420530,1.43592354,119180.0,119170.0,0.36622356]
[1753687420731,1.43592354,119180.0,119170.0,0.26797882]
[1753687420924,1.43592354,119180.0,119170.0,0.23965882]
[1753687421133,0.5050747,119170.0,119160.0,0.18806]
[1753687421325,0.74984817,119170.0,119160.0,0.52376203]
[1753687422027,0.74984817,119170.0,119160.0,0.57370203]
[1753687422429,0.74984817,119170.0,119160.0,0.81461203]
[1753687423831,0.74988817,119170.0,119160.0,0.81461203]
[1753687425525,0.69002806,119170.0,119160.0,0.81461203]
[1753687425927,0.69102806,119170.0,119160.0,0.82161203]
[1753687429433,1.42365963,119180.0,119160.0,0.82161203]
[1753687429635,1.59145613,119180.0,119170.0,0.80966203]
[1753687429840,1.67537338,119180.0,119170.0,0.80966203]
[1753687430532,1.67637338,119180.0,119170.0,0.80966203]
[1753687431031,1.67537338,119180.0,119170.0,0.80966203]
[1753687431232,1.67637338,119180.0,119170.0,0.81466203]
[1753687431732,1.59227338,119180.0,119170.0,0.81466203]
[1753687432237,1.08799173,119180.0,119170.0,0.81666203]
[1753687432434,0.40271173,119180.0,119170.0,0.81666203]
[1753687432635,1.08799173,119180.0,119170.0,0.81666203]
[1753687435038,1.14785184,119180.0,119170.0,0.81666203]
[1753687435426,1.08799173,119180.0,119170.0,0.81666203]
[1753687437540,1.1631318,119180.0,119170.0,0.74914662]
[1753687437740,1.08799173,119180.0,119170.0,0.48096]
[1753687438040,1.12744173,119180.0,119170.0,0.43895811]
[1753687438238,0.54881173,119180.0,119170.0,0.39695622]
[1753687438435,1.23393173,119180.0,119170.0,0.35495551]
[1753687438738,1.25841173,119180.0,119170.0,0.4149112]
[1753687439040,1.25841173,119180.0,119170.0,0.393279]
[1753687439239,1.25841173,119180.0,119170.0,0.35127829]
[1753687439434,1.25841173,119180.0,119170.0,0.30927758]
[1753687439839,1.25841173,119180.0,119170.0,0.26727687]
[1753687440035,1.25841173,119180.0,119170.0,0.22527616]
[1753687440733,1.25841173,119180.0,119170.0,0.52978819]
[1753687440931,1.33826173,119180.0,119170.0,0.38510919]
[1753687441133,0.6423706,119170.0,119160.0,0.52339203]
[1753687441336,0.6423706,119170.0,119160.0,1.02688803]
[1753687441539,0.65944113,119170.0,119160.0,0.858416]
[1753687441729,0.99514316,119170.0,119160.0,0.35492]
[1753687442130,0.65944113,119170.0,119160.0,0.40428]
[1753687442448,0.66044113,119170.0,119160.0,0.41128]
[1753687442940,0.66044113,119170.0,119160.0,0.48096]
[1753687443143,0.7355812,119170.0,119160.0,0.48096]
[1753687443337,0.66044113,119170.0,119160.0,0.48096]
[1753687443649,0.66044113,119170.0,119160.0,0.81966203]
[1753687447740,0.72044744,119170.0,119160.0,0.81966203]
[1753687448436,0.72048744,119170.0,119160.0,0.81966203]
[1753687448843,1.37174953,119180.0,119160.0,0.77030203]
[1753687449041,1.63954603,119180.0,119170.0,0.3682]
[1753687449242,1.72346328,119180.0,119170.0,0.33231117]
[1753687449547,1.80009328,119180.0,119170.0,6e-08]
[1753687449750,0.6405506,119170.0,119160.0,0.53339203]
[1753687450347,0.6405506,119170.0,119160.0,0.53239203]
[1753687450549,0.6405506,119170.0,119160.0,0.52539203]
[1753687450848,0.6405506,119170.0,119160.0,0.52939203]
[1753687451341,0.6405506,119170.0,119160.0,0.57675203]
[1753687451544,0.6405506,119170.0,119160.0,0.34270203]
[1753687451746,0.6405906,119170.0,119160.0,0.34270203]
[1753687451945,0.6405906,119170.0,119160.0,0.74698203]
[1753687452251,0.6405906,119170.0,119160.0,0.82122203]
[1753687453146,0.6415906,119170.0,119160.0,0.82322203]
[1753687459940,0.71673067,119170.0,119160.0,0.82322203]
[1753687460750,0.73347003,119170.0,119160.0,0.82322203]
[1753687461555,0.71673067,119170.0,119160.0,0.82322203]
[1753687464363,0.73338894,119170.0,119160.0,0.82322203]
[1753687465558,0.65824887,119170.0,119160.0,0.82322203]
[1753687470363,0.30738958,119170.0,119160.0,0.82322203]
[1753687470561,0.59945018,119170.0,119160.0,0.80054183]
[1753687471065,0.59945018,119170.0,119160.0,0.74809363]
[1753687471252,0.59945018,119170.0,119160.0,0.70808443]
[1753687471454,0.59945018,119170.0,119160.0,0.4490436]
[1753687471654,0.59945018,119170.0,119160.0,0.3886062]
[1753687471655,0.67459025,119170.0,119160.0,0.3886062]
[1753687471855,0.67459025,119170.0,119160.0,0.3887685]
[1753687472159,0.67459025,119170.0,119160.0,0.3390788]
[1753687473460,0.67459025,119170.0,119160.0,0.3342388]
[1753687473653,0.67459025,119170.0,119160.0,0.3303788]
[1753687473859,0.67459025,119170.0,119160.0,0.4394588]
[1753687474865,0.67459025,119170.0,119160.0,0.44070071]
[1753687475665,0.67459025,119170.0,119160.0,0.39936211]
[1753687476067,0.67459025,119170.0,119160.0,0.26915343]
[1753687476268,0.67459025,119170.0,119160.0,0.22714909]
[1753687476565,0.65793198,119170.0,119160.0,0.22714909]
[1753687476963,0.1678246,119160.0,119140.0,0.33570203]
[1753687477266,1.4965488,119150.0,119140.0,0.15894]
[1753687477568,1.5731431,119150.0,119140.0,0.662436]
[1753687477962,1.90884513,119150.0,119140.0,0.662436]
[1753687478166,1.90884513,119150.0,119140.0,0.825796]
[1753687478363,1.90884513,119150.0,119140.0,0.896896]
[1753687478567,1.5731431,119150.0,119140.0,0.896896]
[1753687478765,1.5741431,119150.0,119140.0,0.901896]
[1753687478965,1.51412745,119150.0,119140.0,0.798296]
[1753687479361,1.51412745,119150.0,119140.0,0.7410516]
[1753687479569,1.51412745,119150.0,119140.0,0.8841216]
[1753687479769,1.51412745,119150.0,119140.0,0.8811216]
[1753687479964,1.51412745,119150.0,119140.0,0.8851216]
[1753687480169,1.90984513,119150.0,119140.0,0.8851216]
[1753687480665,1.5741431,119150.0,119140.0,0.8851216]
[1753687481561,0.8903431,119150.0,119140.0,0.8851216]
[1753687481767,1.5739431,119150.0,119140.0,1.22082363]
[1753687483373,1.51392745,119150.0,119140.0,1.22082363]
[1753687485680,1.51392745,119150.0,119140.0,0.71732763]
[1753687485977,1.51392745,119150.0,119140.0,1.22082363]
[1753687493778,1.51392745,119150.0,119140.0,0.71732763]
[1753687494689,1.51392745,119150.0,119140.0,1.22082363]
[1753687496793,1.7652521,119150.0,119140.0,1.3877709]
[1753687496981,1.7652521,119150.0,119140.0,1.13644625]
[1753687498496,1.7652521,119150.0,119140.0,0.63295025]
[1753687498703,1.7652521,119150.0,119140.0,1.13644625]
[1753687498999,1.7652521,119150.0,119140.0,1.3877709]
[1753687499796,1.7652521,119150.0,119140.0,1.13644625]
[1753687500393,1.7652521,119150.0,119140.0,1.10797625]
[1753687500593,1.82526775,119150.0,119140.0,0.512496]
[1753687500798,1.82526775,119150.0,119140.0,0.2706377]
[1753687501005,1.82525558,119150.0,119140.0,0.1934161]
[1753687501200,1.82525558,119150.0,119140.0,0.47873075]
[1753687501392,1.14165558,119150.0,119140.0,1e-07]
[1753687501588,0.2976956,119120.0,119110.0,0.03054]
[1753687501798,0.39820868,119120.0,119110.0,1.2161493]
[1753687502496,0.46432607,119120.0,119110.0,0.28186465]
[1753687502696,1.13303072,119120.0,119110.0,0.30095465]
[1753687503005,1.14503072,119120.0,119110.0,0.73351]
[1753687503294,1.14503072,119120.0,119110.0,0.30195465]
[1753687503493,1.14503072,119120.0,119110.0,0.98483465]
[1753687504589,0.89370607,119120.0,119110.0,0.98483465]
[1753687504893,0.89370607,119120.0,119110.0,0.73351]
[1753687505098,0.89370607,119120.0,119110.0,1.06878003]
[1753687505290,0.89370607,119120.0,119110.0,0.38590003]
[1753687505491,0.89370607,119120.0,119110.0,1.06874003]
[1753687520507,0.68252,119130.0,119120.0,0.07497]
[1753687520712,1.05555768,119130.0,119120.0,0.76487003]
[1753687522115,1.06055768,119130.0,119120.0,0.76587003]
[1753687522514,1.34404768,119130.0,119120.0,0.76587003]
[1753687524720,1.60503873,119140.0,119120.0,0.76587003]
[1753687524916,1.77289153,119140.0,119130.0,0.04816]
[1753687525215,1.85683696,119140.0,119130.0,0.04816]
[1753687526113,1.85783696,119140.0,119130.0,0.05616]
[1753687526919,2.07059593,119140.0,119130.0,0.05616]
[1753687527113,0.2413569,119130.0,119120.0,0.4296]
[1753687527420,0.3146669,119130.0,119120.0,0.6810145]
[1753687527819,0.37468255,119130.0,119120.0,0.6810145]
[1753687528219,0.62609705,119130.0,119120.0,0.6810145]
[1753687528413,0.62609705,119130.0,119120.0,0.932429]
[1753687528816,0.62609705,119130.0,119120.0,0.933429]
[1753687529016,0.62609705,119130.0,119120.0,0.6830145]
[1753687529219,0.62609705,119130.0,119120.0,0.7311745]
[1753687529420,0.62609705,119130.0,119120.0,0.982589]
[1753687529615,0.62609705,119130.0,119120.0,0.002]
[1753687529822,0.65002683,119130.0,119120.0,0.002]
[1753687530018,0.39861233,119130.0,119120.0,0.002]
[1753687530220,0.39861233,119130.0,119120.0,0.504829]
[1753687530221,0.65002683,119130.0,119120.0,0.504829]
[1753687530421,0.65002683,119130.0,119120.0,0.2534145]
[1753687531115,0.65002683,119130.0,119120.0,0.504829]
[1753687531321,0.39861233,119130.0,119120.0,0.504829]
[1753687531827,0.39861233,119130.0,119120.0,0.507829]
[1753687532418,0.39861233,119130.0,119120.0,1.2370035]
[1753687533119,0.39861233,119130.0,119120.0,0.985589]
[1753687533318,0.39861233,119130.0,119120.0,0.986589]
[1753687534424,1.32978435,119140.0,119120.0,0.986589]
[1753687534626,1.84905165,119140.0,119130.0,0.2995745]
[1753687535119,1.93299708,119140.0,119130.0,0.2995745]
[1753687535321,1.93299708,119140.0,119130.0,0.2514145]
[1753687535720,1.68158258,119140.0,119130.0,0.2514145]
[1753687536014,1.93299708,119140.0,119130.0,0.2995745]
[1753687536324,1.68158258,119140.0,119130.0,0.2995745]
[1753687536719,1.69928449,119140.0,119130.0,0.3045745]
[1753687538018,1.08033019,119150.0,119130.0,0.3045745]
[1753687538225,0.6181819,119140.0,119130.0,0.05316]
[1753687538421,0.6181819,119140.0,119130.0,0.3045745]
[1753687538921,0.7181819,119140.0,119130.0,0.3045745]
[1753687539225,0.7181819,119140.0,119130.0,0.2564145]
[1753687539226,0.9695964,119140.0,119130.0,0.2564145]
[1753687539928,0.9695964,119140.0,119130.0,0.2514145]
[1753687540322,0.9695964,119140.0,119130.0,0.2564145]
[1753687540522,0.99789969,119150.0,119130.0,0.3045745]
[1753687540717,0.99789969,119150.0,119130.0,0.05716]
[1753687540923,0.99689969,119150.0,119140.0,0.3352056]
[1753687541122,1.18083807,119150.0,119140.0,0.3352056]
[1753687541423,1.49350598,119150.0,119140.0,0.3352056]
[1753687542022,1.49450598,119150.0,119140.0,0.3402056]
[1753687542225,1.24450598,119150.0,119140.0,0.3402056]
[1753687542423,1.07664198,119150.0,119140.0,0.3402056]
[1753687542730,1.24450598,119150.0,119140.0,0.3402056]
[1753687543229,0.10519609,119160.0,119140.0,1.7682812]
[1753687543530,0.4196009,119170.0,119160.0,0.48314]
[1753687543531,4e-05,119170.0,119160.0,0.48314]
[1753687543729,4e-05,119170.0,119160.0,1.8351112]
[1753687543926,0.10806083,119180.0,119170.0,0.45079]
[1753687544126,0.10806083,119180.0,119170.0,0.8183456]
[1753687546730,0.10806083,119180.0,119170.0,0.8193456]
[1753687555044,0.10806083,119180.0,119170.0,1.5003856]
[1753687559739,4e-05,119200.0,119170.0,1.2106656]
[1753687559945,4e-05,119200.0,119190.0,0.8183456]
[1753687560141,4e-05,119200.0,119190.0,1.8343512]
[1753687561651,4e-05,119200.0,119190.0,1.4991456]
[1753687561845,0.00304,119200.0,119190.0,1.4991456]
[1753687562449,0.11364693,119200.0,119190.0,1.4991456]
[1753687562746,0.0445,119200.0,119190.0,1.4991456]
[1753687563443,0.00404,119200.0,119190.0,1.4990256]
[1753687564149,0.00404,119200.0,119190.0,0.8183456]
[1753687564350,0.00404,119200.0,119190.0,1.4989856]
[1753687564549,0.00404,119200.0,119190.0,0.8183456]
[1753687565151,0.00404,119200.0,119190.0,1.4989056]
[1753687566152,0.00404,119200.0,119190.0,0.8183456]
[1753687566352,0.00404,119200.0,119190.0,1.4989056]
[1753687566747,0.04689866,119200.0,119190.0,1.4989056]
[1753687567150,0.11360501,119200.0,119190.0,0.8183456]
[1753687567344,0.00404,119200.0,119190.0,1.4988656]
[1753687568265,0.00404,119200.0,119190.0,0.8183456]
[1753687568444,0.00404,119200.0,119190.0,1.4988256]
[1753687569951,0.04046,119210.0,119190.0,1.8340312]
[1753687570252,0.13569,119220.0,119210.0,0.48314]
[1753687570453,0.13569,119220.0,119210.0,1.39456779]
[1753687570654,0.20426701,119220.0,119210.0,1.31058496]
[1753687570951,0.34387314,119220.0,119210.0,1.22660213]
[1753687571155,0.34387314,119220.0,119210.0,1.1426193]
[1753687572358,0.41861969,119220.0,119210.0,1.1426193]
[1753687572551,0.34387314,119220.0,119210.0,1.1426193]
[1753687573547,0.34587314,119220.0,119210.0,1.1426193]
[1753687573947,0.34787314,119220.0,119210.0,1.1426193]
[1753687574144,0.38884591,119220.0,119210.0,1.1426193]
[1753687574555,0.44867168,119220.0,119210.0,1.1426193]
[1753687575056,0.39296168,119220.0,119210.0,1.1426193]
[1753687576061,0.33313591,119220.0,119210.0,1.1426193]
[1753687576252,0.1734931,119220.0,119210.0,1.1426193]
[1753687576450,0.1724931,119220.0,119210.0,1.1426193]
[1753687576852,0.1734931,119220.0,119210.0,1.1426193]
[1753687577050,0.69644516,119220.0,119210.0,1.18312696]
[1753687577247,0.63550184,119220.0,119210.0,1.17312696]
[1753687577445,0.63250184,119220.0,119210.0,1.17312696]
[1753687577649,0.63250184,119220.0,119210.0,1.17412696]
[1753687577848,0.63250184,119220.0,119210.0,0.51459697]
[1753687578055,0.63250184,119220.0,119210.0,1.19479697]
[1753687578953,0.63250184,119220.0,119210.0,1.43047697]
[1753687579158,0.63250184,119220.0,119210.0,1.47600697]
[1753687579459,0.69243166,119220.0,119210.0,1.47596697]
[1753687579845,0.69243166,119220.0,119210.0,1.43397806]
[1753687580051,0.69243166,119220.0,119210.0,1.39198915]
[1753687580957,0.69243166,119220.0,119210.0,1.38645915]
[1753687581257,0.69243166,119220.0,119210.0,1.38641915]
[1753687581758,0.69243166,119220.0,119210.0,1.38741915]
[1753687581958,0.63250184,119220.0,119210.0,1.37831915]
[1753687582459,0.63250184,119220.0,119210.0,0.5920203]
[1753687582762,1.04245399,119220.0,119210.0,0.67776]
[1753687582953,1.04245399,119220.0,119210.0,0.62156]
[1753687583155,0.63250184,119220.0,119210.0,0.59379]
[1753687583357,0.63250184,119220.0,119210.0,0.57363501]
[1753687583564,0.63250184,119220.0,119210.0,0.53164653]
[1753687583857,0.63250184,119220.0,119210.0,0.47243805]
[1753687584258,0.96770744,119220.0,119210.0,0.47243805]
[1753687584560,0.96770744,119220.0,119210.0,0.43044957]
[1753687584760,1.0426347,119220.0,119210.0,0.38846109]
[1753687585058,0.63250184,119220.0,119200.0,0.4992356]
[1753687585253,0.4596491,119220.0,119210.0,0.68]
[1753687585455,0.38472184,119220.0,119210.0,0.68]
[1753687585657,0.38472184,119220.0,119210.0,0.63801152]
[1753687585859,0.47251,119210.0,119200.0,0.30273]
[1753687586159,0.54744602,119210.0,119200.0,1.03227]
[1753687586463,0.63133511,119210.0,119200.0,1.03227]
[1753687586663,0.63133511,119210.0,119200.0,0.6874756]
[1753687586856,0.63133511,119210.0,119200.0,0.35227]
[1753687587056,0.63133511,119210.0,119200.0,1.03227]
[1753687587559,0.63133511,119210.0,119200.0,1.03427]
[1753687588154,0.63133511,119210.0,119200.0,1.03527]
[1753687588966,0.63133511,119210.0,119200.0,1.03627]
[1753687589368,0.63133511,119210.0,119200.0,1.3714756]
[1753687592369,0.63133511,119210.0,119200.0,0.6914756]
[1753687592574,0.63133511,119210.0,119200.0,1.3713556]
[1753687593277,0.63133511,119210.0,119200.0,1.3891456]
[1753687593971,0.07493602,119210.0,119200.0,1.7243512]
[1753687594575,0.04749,119210.0,119200.0,1.7243512]
[1753687596373,0.10748055,119210.0,119200.0,1.7243512]
[1753687597677,0.4182158,119220.0,119200.0,1.7243512]
[1753687597872,0.6095058,119220.0,119210.0,0.5266256]
[1753687598078,0.69339489,119220.0,119210.0,0.7361856]
[1753687599476,0.79339489,119220.0,119210.0,0.7361856]
[1753687599682,0.79339489,119220.0,119210.0,0.7371856]
[1753687599876,0.84088489,119220.0,119210.0,0.7371856]
[1753687600074,0.53221887,119220.0,119210.0,0.7381856]
[1753687601373,0.69565887,119220.0,119210.0,0.7381856]
[1753687601577,0.76594887,119220.0,119210.0,0.7381856]
[1753687604387,0.69259996,119220.0,119210.0,0.7381856]
[1753687605491,0.76753598,119220.0,119210.0,0.7381856]
[1753687606790,0.76753598,119220.0,119210.0,1.4177456]
[1753687606986,0.76753598,119220.0,119210.0,1.4177056]
[1753687607388,0.83361809,119220.0,119210.0,1.4177056]
[1753687610292,0.75868207,119220.0,119210.0,1.4177056]
[1753687610792,0.75868207,119220.0,119210.0,1.4176656]
[1753687614588,0.75872207,119220.0,119210.0,1.4176656]
[1753687615391,0.81869623,119220.0,119210.0,1.4176656]
[1753687617892,0.75872207,119220.0,119210.0,1.4176656]
[1753687618089,0.57627207,119220.0,119210.0,1.4176656]
[1753687618295,0.28621207,119220.0,119210.0,1.4176656]
[1753687618594,0.20232298,119220.0,119210.0,1.4176656]
[1753687619986,0.277259,119220.0,119210.0,1.4176656]
[1753687621292,0.20232298,119220.0,119210.0,1.4176656]
[1753687621594,0.28917602,119230.0,119210.0,1.4176656]
[1753687621795,0.47821602,119230.0,119220.0,0.5259456]
[1753687621996,0.73455808,119230.0,119220.0,0.7391356]
[1753687622295,0.777351,119230.0,119220.0,0.7391356]
[1753687623693,0.778351,119230.0,119220.0,0.7391356]
[1753687626791,0.43825276,119230.0,119220.0,0.7391356]
[1753687626991,0.2615,119240.0,119230.0,0.47878]
[1753687627194,0.2615,119240.0,119230.0,1.4930656]
[1753687627495,0.44537502,119240.0,119230.0,1.4930656]
[1753687628289,0.48892046,119240.0,119230.0,1.4930656]
[1753687628890,0.70416046,119240.0,119230.0,1.4930656]
[1753687629399,0.65501046,119240.0,119230.0,1.4930656]
[1753687629800,0.54835046,119240.0,119230.0,1.4930656]
[1753687630000,0.54735046,119240.0,119230.0,1.4930656]
[1753687630791,0.61591352,119240.0,119230.0,1.4930656]
[1753687630996,0.61591352,119240.0,119230.0,1.4940656]
[1753687631402,0.72257352,119240.0,119230.0,1.4940656]
[1753687631804,0.72261352,119240.0,119230.0,1.4940656]
[1753687632104,0.72161352,119240.0,119230.0,1.4950656]
[1753687633600,0.3352056,119270.0,119230.0,1.4950656]
[1753687633805,0.17601,119250.0,119240.0,0.8077656]
[1753687634001,0.27601,119250.0,119240.0,0.8077656]
[1753687634202,0.27601,119250.0,119240.0,0.47256]
[1753687634402,0.27601,119250.0,119240.0,0.8077656]
[1753687634609,0.40246141,119250.0,119240.0,0.8077656]
[1753687635706,0.51583141,119250.0,119240.0,0.8077656]
[1753687636101,0.51587141,119250.0,119240.0,0.8077656]
[1753687636503,0.59082351,119250.0,119240.0,0.8077656]
[1753687638507,0.59082351,119250.0,119240.0,0.78761576]
[1753687640305,0.59082351,119250.0,119240.0,0.78580576]
[1753687640507,0.47581739,119250.0,119240.0,1.12101136]
[1753687640808,0.12649141,119250.0,119240.0,1.12101136]
[1753687641713,0.12649141,119250.0,119240.0,1.12201136]
[1753687642216,0.12649141,119250.0,119240.0,0.78680576]
[1753687642613,0.22649141,119250.0,119240.0,0.78680576]
[1753687642912,0.22649141,119250.0,119240.0,1.12201136]